bitfinex-derivatives/quotes_BTCF0:USTF0_20250902
["timestamp","ask_amount","ask_price","bid_price","bid_amount"]
[1756815491609,2.89036715,109460.0,109430.0,0.03486]
[1756815491819,0.95653084,109440.0,109420.0,0.08233]
[1756815492122,0.29786542,109430.0,109420.0,0.44233]
[1756815493607,0.29786542,109430.0,109420.0,0.44433]
[1756815493808,0.65966542,109430.0,109420.0,0.44433]
[1756815494011,0.96966542,109430.0,109420.0,0.08433]
[1756815494219,0.96966542,109430.0,109420.0,0.08233]
[1756815494606,0.66066542,109430.0,109420.0,0.08433]
[1756815494804,1.03066542,109430.0,109420.0,0.08433]
[1756815495018,1.10437091,109430.0,109420.0,0.08433]
[1756815495618,1.11350157,109430.0,109420.0,0.08433]
[1756815497209,0.74350157,109430.0,109420.0,0.08433]
[1756815498118,0.74350157,109430.0,109420.0,0.08437]
[1756815499314,0.74418157,109430.0,109420.0,0.08421]
[1756815502717,0.74418157,109430.0,109420.0,0.04951]
[1756815504814,0.74418157,109430.0,109420.0,0.08437]
[1756815505017,1.66188699,109430.0,109390.0,0.05322819]
[1756815505222,1.66188699,109430.0,109390.0,0.08233]
[1756815505223,0.29786542,109400.0,109390.0,0.08233]
[1756815505415,0.65786542,109400.0,109390.0,0.08233]
[1756815505819,1.01866542,109400.0,109370.0,0.44480319]
[1756815506024,0.59573084,109380.0,109370.0,0.54313]
[1756815506216,1.29653084,109380.0,109370.0,0.08233]
[1756815506412,0.99866542,109380.0,109370.0,0.08233]
[1756815506823,1.29653084,109380.0,109370.0,0.08233]
[1756815507025,1.29053084,109380.0,109370.0,0.08233]
[1756815507411,1.29118532,109380.0,109370.0,0.08233]
[1756815507813,1.31118532,109380.0,109370.0,0.04747]
[1756815508017,0.95118532,109380.0,109370.0,0.08233]
[1756815508217,1.31218532,109380.0,109370.0,0.08633]
[1756815508414,1.31318532,109380.0,109370.0,0.08633]
[1756815508920,0.3568,109380.0,109370.0,0.08633]
[1756815509222,0.95318532,109380.0,109370.0,0.15633]
[1756815510013,0.3568,109380.0,109370.0,0.15633]
[1756815510221,0.95318532,109380.0,109370.0,0.15633]
[1756815512921,0.97340931,109380.0,109370.0,0.15633]
[1756815513121,1.29340931,109380.0,109370.0,0.004]
[1756815513528,1.31340931,109380.0,109370.0,0.004]
[1756815514027,1.31340931,109380.0,109370.0,0.00388]
[1756815515229,0.97340931,109380.0,109370.0,0.35388]
[1756815515827,0.97340931,109380.0,109370.0,0.43621]
[1756815516330,0.97340931,109380.0,109370.0,0.40135]
[1756815516529,0.37702399,109380.0,109370.0,0.43675]
[1756815516826,0.37702399,109380.0,109370.0,0.15675]
[1756815517129,0.37702399,109380.0,109370.0,0.45494266]
[1756815517529,0.67521665,109380.0,109370.0,0.45494266]
[1756815518024,0.37702399,109380.0,109370.0,0.45494266]
[1756815518230,0.67521665,109380.0,109370.0,0.45494266]
[1756815518430,0.37702399,109380.0,109370.0,0.45494266]
[1756815518927,0.37702399,109380.0,109370.0,0.38494266]
[1756815519122,0.67521665,109380.0,109370.0,0.75494266]
[1756815519322,0.67521665,109380.0,109370.0,0.45494266]
[1756815519726,0.67521665,109380.0,109370.0,0.15675]
[1756815519922,0.97340931,109380.0,109370.0,0.09866]
[1756815520124,0.97340931,109380.0,109370.0,0.08388]
[1756815520428,0.37702399,109380.0,109370.0,0.08388]
[1756815520623,0.97340931,109380.0,109370.0,0.43000266]
[1756815520930,0.67521665,109380.0,109370.0,0.46540266]
[1756815521130,0.97340931,109380.0,109370.0,0.13181]
[1756815521331,0.97340931,109380.0,109370.0,0.43000266]
[1756815522434,0.97340931,109380.0,109370.0,0.46540266]
[1756815522732,0.67521665,109380.0,109370.0,0.43000266]
[1756815522933,0.67521665,109380.0,109370.0,0.13181]
[1756815523123,0.67521665,109380.0,109370.0,0.43000266]
[1756815523523,0.97340931,109380.0,109370.0,0.43000266]
[1756815523723,0.37702399,109380.0,109370.0,0.43000266]
[1756815524137,0.67521665,109380.0,109370.0,0.46540266]
[1756815524433,0.37702399,109380.0,109370.0,0.45540266]
[1756815525328,0.67421665,109380.0,109370.0,0.45540266]
[1756815525638,0.67521665,109380.0,109370.0,1.31460266]
[1756815525926,0.67521665,109380.0,109370.0,0.45540266]
[1756815526127,0.67521665,109380.0,109370.0,1.31460266]
[1756815526826,0.67421665,109380.0,109370.0,1.31072266]
[1756815527026,0.67621665,109380.0,109370.0,1.31172266]
[1756815529331,0.67621665,109380.0,109370.0,1.32172266]
[1756815530133,0.67621665,109380.0,109370.0,1.02353]
[1756815530330,0.67621665,109380.0,109370.0,1.32172266]
[1756815530734,0.37802399,109380.0,109370.0,1.32172266]
[1756815530933,0.67621665,109380.0,109370.0,1.32172266]
[1756815531330,0.67621665,109380.0,109370.0,0.46252266]
[1756815531538,0.67621665,109380.0,109370.0,1.32168266]
[1756815532032,0.37802399,109380.0,109370.0,1.32168266]
[1756815532230,0.37802399,109380.0,109370.0,1.57168266]
[1756815532933,0.37802399,109380.0,109370.0,1.66310536]
[1756815533144,0.02322399,109380.0,109370.0,2.58209802]
[1756815533334,0.02322399,109380.0,109370.0,2.94592855]
[1756815533533,0.02322399,109380.0,109370.0,2.94596256]
[1756815533732,0.02322399,109380.0,109370.0,2.58209802]
[1756815534533,0.02322399,109380.0,109370.0,2.6641501]
[1756815535331,0.02322399,109380.0,109370.0,2.58209802]
[1756815535527,0.003,109380.0,109370.0,2.88029068]
[1756815535831,0.003,109380.0,109370.0,2.89868801]
[1756815537237,0.4438904,109430.0,109420.0,0.0354]
[1756815537541,0.83208306,109430.0,109420.0,1.31044266]
[1756815537836,0.52450549,109430.0,109420.0,1.60863532]
[1756815538035,0.07370549,109430.0,109420.0,1.12051532]
[1756815538340,0.90899266,109430.0,109420.0,1.20500266]
[1756815538640,1.25899266,109430.0,109420.0,0.88249]
[1756815538836,1.26799266,109430.0,109420.0,0.88249]
[1756815539042,0.69813998,109430.0,109420.0,0.90681]
[1756815539239,0.74633264,109430.0,109420.0,1.20500266]
[1756815539443,1.05633264,109430.0,109420.0,0.08333]
[1756815539630,1.05633264,109430.0,109410.0,0.74232266]
[1756815539830,0.29819266,109420.0,109410.0,0.74232266]
[1756815540034,0.29819266,109420.0,109410.0,1.60112266]
[1756815540235,0.44813998,109430.0,109410.0,1.64572266]
[1756815540435,0.74633264,109430.0,109420.0,0.38152266]
[1756815540630,0.74133264,109430.0,109420.0,0.46152266]
[1756815540838,0.73533264,109430.0,109420.0,0.46152266]
[1756815541040,0.74233264,109430.0,109420.0,0.46152266]
[1756815541631,0.99033264,109430.0,109420.0,0.10461]
[1756815541837,0.69613998,109430.0,109420.0,0.95333]
[1756815542137,0.69613998,109430.0,109420.0,1.31124266]
[1756815542138,0.99433264,109430.0,109420.0,1.31124266]
[1756815542443,0.99433264,109430.0,109420.0,0.95329]
[1756815542644,0.99433264,109430.0,109420.0,0.92968]
[1756815542838,0.99433264,109430.0,109420.0,0.93968]
[1756815544245,0.99393264,109430.0,109420.0,0.93968]
[1756815544438,0.99393264,109430.0,109420.0,0.96329]
[1756815544638,0.99393264,109430.0,109420.0,0.98761]
[1756815545042,0.99393264,109430.0,109420.0,1.02301]
[1756815545440,0.69573998,109430.0,109420.0,1.32120266]
[1756815545748,0.08533998,109430.0,109420.0,2.79838798]
[1756815545937,0.012,109430.0,109420.0,2.79838798]
[1756815546238,0.012,109430.0,109420.0,2.50019532]
[1756815546948,0.012,109430.0,109420.0,2.79838798]
[1756815547252,0.012,109430.0,109420.0,3.15918798]
[1756815547456,0.012,109430.0,109420.0,3.22480942]
[1756815547639,0.012,109430.0,109420.0,3.15918798]
[1756815548336,0.012,109430.0,109420.0,3.22450837]
[1756815548536,0.012,109430.0,109420.0,3.22426837]
[1756815548741,0.004,109430.0,109420.0,3.22326837]
[1756815548937,0.005,109430.0,109420.0,1.22325039]
[1756815549140,0.005,109430.0,109420.0,2.92807571]
[1756815549544,0.005,109430.0,109420.0,2.70380723]
[1756815549945,0.005,109430.0,109420.0,1.84540723]
[1756815550146,0.001,109430.0,109420.0,2.70376723]
[1756815550347,0.002,109430.0,109420.0,2.70476723]
[1756815550541,0.002,109430.0,109420.0,2.63944684]
[1756815551247,0.001,109430.0,109420.0,1.53008684]
[1756815551547,0.002,109430.0,109420.0,1.53108684]
[1756815551747,0.002,109430.0,109420.0,2.38936684]
[1756815552254,0.002,109430.0,109420.0,2.48074714]
[1756815553245,0.002,109430.0,109420.0,2.73074714]
[1756815553642,0.002,109430.0,109420.0,1.87246714]
[1756815553948,0.002,109430.0,109420.0,1.62246714]
[1756815554249,0.002,109430.0,109420.0,2.38928684]
[1756815554436,0.252,109430.0,109420.0,2.38924684]
[1756815554642,0.002,109430.0,109420.0,2.48062714]
[1756815555746,0.002,109430.0,109420.0,2.73062714]
[1756815556049,0.002,109430.0,109420.0,2.79594753]
[1756815557851,0.002,109430.0,109420.0,2.79586753]
[1756815558841,0.002,109430.0,109420.0,2.73054714]
[1756815559250,0.00196,109430.0,109420.0,2.73050714]
[1756815559454,0.00196,109430.0,109420.0,3.10266398]
[1756815559856,0.00196,109430.0,109420.0,2.73050714]
[1756815560057,0.00196,109430.0,109420.0,3.10266398]
[1756815560453,0.00196,109430.0,109420.0,2.73050714]
[1756815560855,0.00196,109430.0,109420.0,2.99620714]
[1756815561460,0.00196,109430.0,109420.0,2.13812714]
[1756815561660,0.00196,109430.0,109420.0,2.99608714]
[1756815562357,0.00196,109430.0,109420.0,3.36824398]
[1756815562556,0.02036805,109470.0,109460.0,0.08148]
[1756815562758,0.09332321,109470.0,109460.0,1.64151684]
[1756815562961,0.02036805,109470.0,109460.0,1.63151684]
[1756815563366,0.02036805,109470.0,109460.0,1.38151684]
[1756815563861,0.02336805,109470.0,109460.0,1.38151684]
[1756815564461,0.02336805,109470.0,109460.0,0.39148]
[1756815564676,0.27336805,109470.0,109450.0,0.78334684]
[1756815564970,0.25018,109460.0,109450.0,0.78143]
[1756815565269,0.02918805,109470.0,109460.0,0.08148]
[1756815565457,0.27918805,109470.0,109460.0,0.04586]
[1756815565662,0.38998805,109470.0,109460.0,0.04586]
[1756815565859,1.01214489,109470.0,109440.0,0.66212]
[1756815566058,0.73295684,109460.0,109440.0,0.78798]
[1756815566253,0.73295684,109460.0,109450.0,0.85772]
[1756815566457,0.3608,109460.0,109450.0,0.93972]
[1756815566662,0.73295684,109460.0,109450.0,0.93972]
[1756815567060,0.3608,109460.0,109450.0,0.93972]
[1756815567260,0.3608,109460.0,109450.0,0.85872]
[1756815567261,0.98295684,109460.0,109450.0,0.85872]
[1756815567463,1.30056029,109460.0,109450.0,0.001]
[1756815567767,0.98056029,109460.0,109450.0,0.001]
[1756815568463,1.30056029,109460.0,109440.0,0.001]
[1756815568666,0.73056029,109450.0,109440.0,0.001]
[1756815568866,0.98056029,109450.0,109440.0,0.001]
[1756815569660,0.97856029,109450.0,109430.0,0.85768]
[1756815569862,0.3608,109440.0,109430.0,0.8805]
[1756815570064,0.3608,109440.0,109430.0,0.90354]
[1756815570466,0.3608,109440.0,109430.0,0.93916]
[1756815570467,0.3598,109440.0,109430.0,0.93916]
[1756815570663,0.3598,109440.0,109430.0,1.25916]
[1756815570860,0.38435726,109450.0,109430.0,1.00916]
[1756815571164,0.02355726,109450.0,109440.0,0.0823]
[1756815571365,0.02055726,109450.0,109440.0,0.4123]
[1756815571565,0.02055726,109450.0,109440.0,0.1523]
[1756815571765,0.63735726,109450.0,109440.0,0.93864]
[1756815572371,0.63735726,109450.0,109440.0,0.081]
[1756815572759,0.63735726,109450.0,109440.0,0.001]
[1756815573065,0.64035726,109450.0,109440.0,0.001]
[1756815573771,0.64135726,109450.0,109440.0,0.001]
[1756815574174,0.64123726,109450.0,109440.0,0.08248]
[1756815574865,0.39123726,109450.0,109440.0,0.1633]
[1756815575070,1.01099755,109450.0,109440.0,0.081]
[1756815576378,1.01099755,109450.0,109440.0,0.001]
[1756815576569,1.03170297,109450.0,109440.0,0.001]
[1756815578282,2.24926297,109450.0,109440.0,0.001]
[1756815578978,2.22926297,109450.0,109440.0,0.001]
[1756815579475,1.88918297,109450.0,109440.0,0.001]
[1756815579773,1.86847755,109450.0,109440.0,0.001]
[1756815579978,1.88917176,109450.0,109440.0,0.001]
[1756815580181,2.23917176,109450.0,109440.0,0.001]
[1756815580376,1.86847755,109450.0,109440.0,0.001]
[1756815580880,2.24851755,109450.0,109440.0,0.001]
[1756815581176,1.86851755,109450.0,109440.0,0.001]
[1756815581381,0.64123726,109450.0,109440.0,0.001]
[1756815581572,1.01099755,109450.0,109440.0,0.071]
[1756815581768,1.86847755,109450.0,109440.0,0.001]
[1756815581972,1.86847755,109450.0,109440.0,0.091]
[1756815582784,0.39123726,109450.0,109440.0,0.0845]
[1756815583080,0.39123726,109450.0,109440.0,0.4145]
[1756815583271,0.39123726,109450.0,109440.0,0.78426029]
[1756815583773,0.39123726,109450.0,109440.0,0.4145]
[1756815583973,0.03043726,109450.0,109440.0,0.4145]
[1756815588479,0.03043726,109450.0,109440.0,1.27182]
[1756815588684,0.03043726,109450.0,109440.0,0.4145]
[1756815588881,0.03043726,109450.0,109440.0,0.1645]
[1756815589084,0.03043726,109450.0,109440.0,1.02178]
[1756815589286,1.01091755,109450.0,109440.0,0.081]
[1756815589489,1.86819755,109450.0,109440.0,0.001]
[1756815589787,2.17819755,109450.0,109440.0,0.001]
[1756815590285,1.86819755,109450.0,109440.0,0.001]
[1756815590489,1.86819755,109450.0,109440.0,0.08368]
[1756815591180,1.86819755,109450.0,109440.0,0.04628]
[1756815591576,1.86819755,109450.0,109440.0,0.11628]
[1756815592283,1.86819755,109450.0,109440.0,0.15368]
[1756815592484,0.39115726,109450.0,109440.0,0.1545]
[1756815594685,0.39115726,109450.0,109440.0,0.1645]
[1756815595393,0.39115726,109450.0,109440.0,0.08182]
[1756815595588,0.76091755,109450.0,109440.0,0.08182]
[1756815596798,1.01091755,109450.0,109440.0,0.001]
[1756815597486,1.33091755,109450.0,109440.0,0.001]
[1756815598388,1.3516383,109450.0,109440.0,0.001]
[1756815598787,1.3556383,109450.0,109440.0,0.001]
[1756815599290,1.1056383,109450.0,109440.0,0.001]
[1756815599493,1.1066383,109450.0,109440.0,0.001]
[1756815599792,1.3566383,109450.0,109440.0,0.001]
[1756815600894,2.33448027,109450.0,109440.0,0.001]
[1756815602790,1.47748027,109450.0,109440.0,0.001]
[1756815602983,0.85771998,109450.0,109440.0,0.0471]
[1756815603194,0.71615726,109450.0,109440.0,0.3345]
[1756815603898,1.08591755,109450.0,109440.0,0.2971]
[1756815604091,1.08591755,109450.0,109440.0,0.0471]
[1756815604795,0.71615726,109450.0,109440.0,0.0845]
[1756815606096,1.08591755,109450.0,109440.0,0.0845]
[1756815606597,1.08591755,109450.0,109440.0,0.00182]
[1756815607790,1.94279755,109450.0,109440.0,0.04958]
[1756815608999,1.94279755,109450.0,109440.0,0.00182]
[1756815609998,1.94267755,109450.0,109440.0,0.04958]
[1756815610701,1.94267755,109450.0,109440.0,0.08691]
[1756815611906,1.94267755,109450.0,109440.0,0.04958]
[1756815614501,1.08591755,109450.0,109440.0,0.04958]
[1756815614709,0.71615726,109450.0,109440.0,0.33691]
[1756815615005,1.57275726,109450.0,109440.0,0.33691]
[1756815615598,0.71615726,109450.0,109440.0,0.33691]
[1756815615800,0.39615726,109450.0,109440.0,0.70667029]
[1756815616000,0.015,109450.0,109440.0,1.00265186]
[1756815616201,0.015,109450.0,109440.0,0.93721449]
[1756815616499,0.015,109450.0,109440.0,1.52801449]
[1756815616908,0.015,109450.0,109440.0,1.59366747]
[1756815617109,0.015,109450.0,109440.0,1.52801449]
[1756815617303,0.015,109450.0,109440.0,1.55365207]
[1756815618105,0.015,109450.0,109440.0,1.24365207]
[1756815619208,0.015,109450.0,109440.0,2.00872787]
[1756815619813,0.015,109450.0,109440.0,1.94309029]
[1756815622011,0.015,109450.0,109440.0,2.25309029]
[1756815623906,0.015,109450.0,109440.0,2.34445449]
[1756815624306,0.015,109450.0,109440.0,2.41009207]
[1756815625805,0.015,109450.0,109440.0,1.55365207]
[1756815626005,0.015,109450.0,109440.0,2.40973207]
[1756815626414,0.015,109450.0,109440.0,1.55365207]
[1756815626611,0.015,109450.0,109440.0,2.40969207]
[1756815628316,0.015,109450.0,109440.0,2.34405449]
[1756815628512,0.015,109450.0,109440.0,2.36255565]
[1756815629214,0.015,109450.0,109440.0,2.44458246]
[1756815629413,0.015,109450.0,109440.0,2.73656844]
[1756815629617,0.02027833,109490.0,109480.0,0.08509]
[1756815629808,0.40493688,109490.0,109480.0,1.43289654]
[1756815630006,0.33027833,109490.0,109480.0,1.43289654]
[1756815630408,0.33965449,109490.0,109480.0,1.43289654]
[1756815630609,0.02965449,109490.0,109480.0,1.31289654]
[1756815630816,0.03565449,109490.0,109480.0,0.76697654]
[1756815631117,0.03565449,109490.0,109480.0,1.98361654]
[1756815631814,0.02627833,109490.0,109480.0,2.35550308]
[1756815632020,0.02627833,109490.0,109480.0,2.51227649]
[1756815632219,0.006,109490.0,109480.0,2.69683388]
[1756815632720,0.009,109490.0,109480.0,2.76315649]
[1756815633318,0.009,109490.0,109480.0,2.69767388]
[1756815633617,0.009,109490.0,109480.0,2.76311649]
[1756815633821,0.009,109490.0,109480.0,2.69767388]
[1756815634015,0.009,109490.0,109480.0,2.76311649]
[1756815634216,0.0088,109490.0,109480.0,2.76301103]
[1756815634515,0.0088,109490.0,109480.0,1.91643787]
[1756815634717,0.0088,109490.0,109480.0,2.76293103]
[1756815634908,0.3608,109530.0,109520.0,0.08509]
[1756815635109,0.7408,109530.0,109520.0,0.59697654]
[1756815635309,0.38092178,109540.0,109520.0,0.59697654]
[1756815635310,0.45342866,109540.0,109520.0,1.45253654]
[1756815635512,0.09262866,109540.0,109530.0,0.45697654]
[1756815635708,0.34262866,109540.0,109530.0,1.39253654]
[1756815635916,0.07250688,109540.0,109530.0,1.39253654]
[1756815636111,0.00919658,109550.0,109530.0,1.72729544]
[1756815636313,0.33,109550.0,109540.0,0.45544654]
[1756815636622,0.3608,109570.0,109560.0,0.08356]
[1756815636817,0.7308,109570.0,109560.0,1.40296654]
[1756815637017,0.7308,109570.0,109560.0,1.03108]
[1756815637212,0.7308,109570.0,109540.0,0.37895606]
[1756815637213,1.36198751,109570.0,109540.0,0.01815606]
[1756815637418,1.09348654,109550.0,109530.0,0.002]
[1756815637619,1.09348654,109550.0,109520.0,0.939]
[1756815637620,0.3608,109540.0,109520.0,0.939]
[1756815637820,0.43239421,109540.0,109530.0,0.93896]
[1756815638017,0.68239421,109540.0,109530.0,0.90342]
[1756815638230,0.68239421,109540.0,109530.0,0.85532]
[1756815638423,1.42428075,109540.0,109510.0,2.34481882]
[1756815638621,0.3608,109520.0,109510.0,1.98401882]
[1756815638818,0.3608,109520.0,109510.0,2.83933882]
[1756815639421,0.3608,109530.0,109520.0,0.02404]
[1756815639720,1.04268654,109530.0,109510.0,0.87343882]
[1756815639920,0.3608,109520.0,109510.0,0.89747882]
[1756815640116,0.3608,109520.0,109510.0,0.89847882]
[1756815640319,0.98268654,109520.0,109510.0,0.001]
[1756815640725,0.98268654,109520.0,109500.0,0.03223827]
[1756815640726,0.98268654,109520.0,109500.0,0.91147827]
[1756815640928,0.3608,109510.0,109500.0,0.91147827]
[1756815641322,0.3608,109510.0,109500.0,0.87385827]
[1756815641720,0.3608,109510.0,109500.0,0.92195827]
[1756815641936,0.3628,109520.0,109510.0,0.08356]
[1756815642117,0.3628,109520.0,109510.0,0.45544654]
[1756815642637,0.6128,109520.0,109510.0,0.88016]
[1756815643021,0.6128,109520.0,109510.0,0.93968]
[1756815643217,0.6128,109520.0,109510.0,0.02404]
[1756815643426,0.98668654,109520.0,109500.0,0.06807827]
[1756815643627,0.3608,109510.0,109500.0,0.91177827]
[1756815643930,0.3608,109510.0,109500.0,0.11617827]
[1756815644132,0.3608,109510.0,109500.0,0.97129827]
[1756815644630,0.3628,109520.0,109510.0,0.08356]
[1756815645126,0.3628,109520.0,109510.0,0.0481]
[1756815645426,0.3628,109520.0,109510.0,0.02404]
[1756815645630,1.34468654,109520.0,109490.0,0.03546]
[1756815645834,0.3608,109500.0,109490.0,0.9386]
[1756815647435,0.3608,109500.0,109490.0,0.90414]
[1756815647626,1.67348654,109500.0,109490.0,0.001]
[1756815648138,1.67348654,109500.0,109490.0,0.0491]
[1756815648139,0.7216,109500.0,109490.0,0.0491]
[1756815648325,0.7216,109500.0,109490.0,0.08456]
[1756815648526,0.7216,109500.0,109490.0,0.0491]
[1756815648726,0.7216,109500.0,109490.0,0.08456]
[1756815648926,0.003,109500.0,109490.0,1.06624654]
[1756815649130,0.00288,109500.0,109490.0,1.39624654]
[1756815649441,0.00288,109500.0,109490.0,1.48756924]
[1756815650122,0.00488,109500.0,109490.0,1.48756924]
[1756815650626,0.38138075,109530.0,109520.0,0.0481]
[1756815650824,0.38138075,109530.0,109520.0,0.86452]
[1756815651231,0.38138075,109530.0,109520.0,1.23640654]
[1756815652333,0.38238075,109530.0,109520.0,1.23640654]
[1756815652726,0.02158075,109530.0,109520.0,0.86452]
[1756815652926,0.02158075,109530.0,109520.0,1.23640654]
[1756815653134,0.02158075,109530.0,109520.0,0.86452]
[1756815653434,0.02158075,109530.0,109520.0,1.23640654]
[1756815654031,0.02158075,109530.0,109520.0,2.06039078]
[1756815654333,0.02158075,109530.0,109520.0,2.69039078]
[1756815655338,0.02158075,109530.0,109520.0,1.9466177]
[1756815655531,0.02158075,109530.0,109520.0,2.69039078]
[1756815656233,0.02024099,109550.0,109530.0,0.0912839]
[1756815656437,0.02024099,109550.0,109540.0,1.76912764]
[1756815656640,0.02024099,109550.0,109540.0,2.07912764]
[1756815656943,0.02024099,109550.0,109540.0,2.01912764]
[1756815657139,0.02024099,109550.0,109540.0,2.33912764]
[1756815657339,0.36982914,109570.0,109540.0,1.98366764]
[1756815657536,0.003,109550.0,109540.0,1.7772411]
[1756815657839,0.003,109550.0,109540.0,2.1380411]
[1756815658539,0.3810264,109580.0,109570.0,0.08356]
[1756815658740,0.6610264,109580.0,109570.0,1.43988654]
[1756815658933,0.6610264,109580.0,109570.0,1.068]
[1756815659830,0.6610264,109580.0,109570.0,1.06804]
[1756815660141,0.6733865,109580.0,109570.0,1.06804]
[1756815660337,0.9233865,109580.0,109570.0,0.0836]
[1756815660531,0.9233865,109580.0,109570.0,0.43488]
[1756815660727,0.9233865,109580.0,109570.0,0.51844]
[1756815661032,0.9243865,109580.0,109570.0,0.51844]
[1756815661237,0.6743865,109580.0,109570.0,0.89032654]
[1756815661536,0.3042264,109580.0,109570.0,0.89032654]
[1756815661737,0.3042264,109580.0,109570.0,1.45988654]
[1756815662138,0.2742264,109580.0,109570.0,1.45988654]
[1756815662331,0.2742264,109580.0,109570.0,1.088]
[1756815662529,0.2742264,109580.0,109570.0,1.45988654]
[1756815662734,0.6350264,109580.0,109570.0,0.14004]
[1756815664343,1.00671294,109580.0,109570.0,4e-05]
[1756815665038,0.6348264,109580.0,109570.0,4e-05]
[1756815667143,0.6348264,109580.0,109570.0,0.0486]
[1756815667440,0.3848264,109580.0,109570.0,0.08609]
[1756815668535,0.3848264,109580.0,109570.0,4e-05]
[1756815669046,0.3848264,109580.0,109570.0,0.02417]
[1756815669340,0.3848264,109580.0,109570.0,0.08609]
[1756815670537,0.3648,109580.0,109570.0,0.0486]
[1756815671242,0.3648,109580.0,109570.0,0.02417]
[1756815671442,0.3648,109580.0,109570.0,4e-05]
[1756815672641,0.6148,109580.0,109570.0,4e-05]
[1756815672845,0.98668654,109580.0,109570.0,4e-05]
[1756815673141,0.6148,109580.0,109570.0,4e-05]
[1756815673342,1.33668654,109580.0,109570.0,4e-05]
[1756815673745,2.19968654,109580.0,109570.0,4e-05]
[1756815673935,2.24088959,109580.0,109570.0,4e-05]
[1756815674746,1.37788959,109580.0,109570.0,4e-05]
[1756815674935,2.24124959,109580.0,109570.0,4e-05]
[1756815675643,1.37788959,109580.0,109570.0,4e-05]
[1756815675842,2.24124959,109580.0,109570.0,4e-05]
[1756815676944,2.24124959,109580.0,109530.0,0.08605]
[1756815677146,0.73268654,109550.0,109530.0,0.08605]
[1756815677545,0.3608,109550.0,109540.0,0.45793654]
[1756815677748,0.38099816,109570.0,109550.0,0.10008]
[1756815678047,0.72099816,109570.0,109560.0,0.08605]
[1756815678250,0.74178069,109570.0,109560.0,0.08605]
[1756815678642,1.11366723,109570.0,109550.0,0.10008]
[1756815678845,0.3608,109560.0,109550.0,0.10008]
[1756815679143,0.3608,109560.0,109550.0,0.1]
[1756815679456,0.38099816,109570.0,109550.0,0.43251]
[1756815679644,0.58179535,109570.0,109560.0,0.08605]
[1756815679844,0.56099816,109570.0,109560.0,0.20805]
[1756815680241,0.9328847,109570.0,109560.0,0.35056]
[1756815680550,0.7528847,109570.0,109560.0,0.3]
[1756815680746,0.7528847,109570.0,109560.0,4e-05]
[1756815681049,0.38099816,109570.0,109560.0,0.08609]
[1756815681950,0.38099816,109570.0,109560.0,0.08809]
[1756815682546,0.38199816,109570.0,109560.0,0.08809]
[1756815684355,0.38199816,109570.0,109560.0,0.70997654]
[1756815684758,0.001,109570.0,109560.0,2.34312074]
[1756815685648,0.001,109570.0,109560.0,2.78034443]
[1756815685857,0.001,109570.0,109560.0,2.49034443]
[1756815686451,0.001,109570.0,109560.0,1.13611369]
[1756815686652,0.001,109570.0,109560.0,1.94157654]
[1756815686966,0.001,109570.0,109560.0,2.0009542]
[1756815687260,0.001,109570.0,109560.0,2.05284074]
[1756815687561,0.001,109570.0,109560.0,2.41284074]
[1756815687859,0.001,109570.0,109560.0,2.11817789]
[1756815688351,0.001,109570.0,109560.0,2.47006443]
[1756815688559,0.001,109570.0,109560.0,2.84006443]
[1756815689449,0.001,109570.0,109560.0,2.4649825]
[1756815692254,0.001,109570.0,109560.0,2.39964535]
[1756815692646,0.02036347,109580.0,109570.0,0.0912559]
[1756815692952,0.02036347,109580.0,109570.0,1.24226585]
[1756815694260,0.02036347,109580.0,109570.0,1.24526585]
[1756815695152,0.02036347,109580.0,109570.0,1.3835588]
[1756815695462,0.02036347,109580.0,109570.0,1.68678115]
[1756815696261,0.02036347,109580.0,109570.0,1.68478115]
[1756815696460,0.02036347,109580.0,109570.0,0.83854115]
[1756815696662,0.02036347,109580.0,109570.0,1.70554115]
[1756815696964,0.02036347,109580.0,109570.0,1.70518115]
[1756815697167,0.02036347,109580.0,109570.0,0.83754115]
[1756815697364,0.02036347,109580.0,109570.0,1.70510115]
[1756815697665,0.02036347,109580.0,109570.0,1.79635705]
[1756815698166,0.02036347,109580.0,109570.0,2.13623705]
[1756815698361,0.02036347,109580.0,109570.0,1.79623705]
[1756815700968,0.02036347,109580.0,109570.0,1.77623705]
[1756815701668,0.02036347,109580.0,109570.0,1.79623705]
[1756815701863,0.02036347,109580.0,109570.0,2.09623705]
[1756815702165,0.02036347,109580.0,109570.0,2.36623705]
[1756815702367,0.38138873,109610.0,109570.0,2.39421585]
[1756815702570,0.03058873,109610.0,109600.0,0.46538115]
[1756815702775,0.02058873,109610.0,109600.0,1.35178115]
[1756815703667,0.02058873,109610.0,109600.0,0.48538115]
[1756815703867,0.02058873,109610.0,109600.0,1.35170115]
[1756815704064,0.02358873,109610.0,109600.0,0.46538115]
[1756815704370,0.02358873,109610.0,109600.0,1.33122115]
[1756815704571,0.02558873,109610.0,109600.0,0.96253]
[1756815704774,0.63638873,109610.0,109600.0,0.96233]
[1756815705568,0.63438873,109610.0,109600.0,0.96233]
[1756815706466,0.63438873,109610.0,109600.0,0.09669]
[1756815706873,0.63438873,109610.0,109600.0,0.96181]
[1756815707066,0.63438873,109610.0,109600.0,0.09669]
[1756815707272,0.63438873,109610.0,109600.0,0.86488]
[1756815707471,0.63438873,109610.0,109600.0,0.88833]
[1756815707672,0.63438873,109610.0,109600.0,0.86488]
[1756815707869,0.63438873,109610.0,109590.0,0.03543]
[1756815708075,0.3608,109600.0,109590.0,0.21292]
[1756815708275,0.3608,109600.0,109590.0,1.0778]
[1756815708977,0.36072,109600.0,109590.0,1.0778]
[1756815709271,0.3608,109600.0,109590.0,1.07748]
[1756815710673,0.3618,109600.0,109590.0,1.07748]
[1756815710873,0.6118,109600.0,109590.0,1.07748]
[1756815712366,0.6118,109600.0,109590.0,1.44617115]
[1756815712572,0.6118,109600.0,109590.0,1.07748]
[1756815716383,0.6118,109600.0,109590.0,1.0764]
[1756815717485,0.6118,109600.0,109590.0,1.0784]
[1756815719180,0.001,109600.0,109590.0,1.44709115]
[1756815719977,0.3618,109600.0,109590.0,1.51255995]
[1756815720280,0.3618,109600.0,109590.0,1.51055995]
[1756815720481,0.3608,109600.0,109590.0,1.1428288]
[1756815720682,0.3608,109600.0,109590.0,1.1426288]